[Event "Fagernes Chess GM-Swiss 2024"]
[Site "Fagernes"]
[Date "2024.03.29"]
[Round "7.27"]
[White "Al-Tarboush, Ward"]
[Black "Vestby-Ellingsen, Mads"]
[Result "0-1"]
[ECO "B90"]
[WhiteElo "2277"]
[BlackElo "2336"]
[Annotator "RC"]
[PlyCount "222"]
[EventDate "2024.03.25"]
[EventType "swiss"]
[EventCountry "NOR"]
[SourceTitle "playchess.com"]
[Source "ChessBase"]
[SourceQuality "1"]
[TimeControl "40/6000+30:2400+30"]

1. e4 {[%emt 0:00:02]} c5 {[%emt 0:04:22]} 2. Nf3 {[%emt 0:00:07]} d6 {[%emt 0:00:09]} 3. d4 {[%emt 0:00:03]} cxd4 {[%emt 0:00:08]} 4. Nxd4 {[%emt 0:00:04]} Nf6 {[%emt 0:00:10]} 5. Nc3 {[%emt 0:00:02]} a6 {[%emt 0:00:11]} 6. h3 {[%emt 0:00:05]} e5 {[%emt 0:00:08]} 7. Nde2 {[%emt 0:00:05]} h5 {[%emt 0:00:13]} 8. Bg5 {[%emt 0:00:04]} Be6 {[%emt 0:00:11]} 9. g3 {[%emt 0:00:24]} Be7 {[%emt 0:00:21]} 10. Bg2 {[%emt 0:00:25]} b5 {[%emt 0:00:13]} 11. a3 {[%emt 0:00:59]} Nbd7 {[%emt 0:01:04]} 12. O-O {[%emt 0:00:15]} O-O {[%emt 0:01:41]} 13. f4 {[%emt 0:11:06]} Nb6 {[%emt 0:12:50]} 14. b3 {[%emt 0:00:46]} Bc8 {[%emt 0:09:29]} 15. Qd3 {[%emt 0:01:51]} Bb7 {[%emt 0:02:57]} 16. Rad1 {[%emt 0:01:47]} Rc8 {[%emt 0:04:55]} 17. f5 {[%emt 0:08:20]} Nbd7 {[%emt 0:01:57]} 18. Qd2 {[%emt 0:01:49]} a5 {[%emt 0:10:07]} 19. h4 {[%emt 0:38:34]} Qc7 {[%emt 0:11:10]} 20. Rc1 {[%emt 0:01:34]} d5 {[%emt 0:10:25]} 21. Nxd5 {[%emt 0:03:42]} Bxd5 {[%emt 0:00:12]} 22. exd5 {[%emt 0:01:40]} Bxa3 {[%emt 0:00:58]} 23. Ra1 {[%emt 0:01:54]} Bc5+ {[%emt 0:03:13]} 24. Kh1 {[%emt 0:02:21]} Bb4 {[%emt 0:00:11]} 25. c3 {[%emt 0:00:43]} Bxc3 {[%emt 0:00:11]} 26. d6 {[%emt 0:10:41]} Bxd2 {[%emt 0:00:55]} 27. dxc7 {[%emt 0:03:48]} Bb4 {[%emt 0:00:15]} 28. Rfc1 {[%emt 0:00:44]} Nc5 {[%emt 0:00:54]} 29. Nc3 {[%emt 0:01:41]} Rxc7 {[%emt 0:19:34]} 30. Bxf6 {[%emt 0:05:35]} gxf6 {[%emt 0:00:08]} 31. Nd5 {[%emt 0:01:20]} Rcc8 {[%emt 0:00:07]} 32. Ne7+ {[%emt 0:01:08]} Kg7 {[%emt 0:00:09]} 33. Nxc8 {[%emt 0:00:32]} Rxc8 {[%emt 0:00:08]} 34. Bf1 {[%emt 0:04:07]} Rd8 {[%emt 0:11:28]} 35. Rd1 {[%emt 0:00:44]} Rb8 {[%emt 0:00:25]} 36. Rac1 {[%emt 0:02:06]} Nxb3 {[%emt 0:00:38]} 37. Rc7 {[%emt 0:00:10]} Nd4 {[%emt 0:00:08]} 38. Bg2 {[%emt 0:00:50]} Rd8 {[%emt 0:03:13]} 39. Be4 {[%emt 0:01:21]} a4 {[%emt 0:01:17]} 40. Rb7 {[%emt 0:01:41]} a3 {[%emt 0:01:11]} 41. Bb1 {[%emt 0:40:17]} Bc3 {[%emt 0:27:50]} 42. Ba2 {[%emt 0:00:00]} Rf8 {[%emt 0:00:12]} 43. g4 {[%emt 0:00:00]} hxg4 {[%emt 0:08:06]} 44. Rg1 {[%emt 0:00:00]} Nxf5 {[%emt 0:01:19]} 45. Rxg4+ {[%emt 0:00:00]} Kh6 {[%emt 0:01:01]} 46. Rxb5 {[%emt 0:00:00]} Rd8 {[%emt 0:01:41]} 47. Rg1 {[%emt 0:00:00]} Bd4 {[%emt 0:03:17]} 48. Rg2 {[%emt 0:00:00]} Nxh4 {[%emt 0:01:59]} 49. Rg4 {[%emt 0:00:00]} Bf2 {[%emt 0:01:00]} 50. Bxf7 {[%emt 0:00:00]} f5 {[%emt 0:00:28]} 51. Ra4 {[%emt 0:00:00]} Rd3 {[%emt 0:00:37]} 52. Kh2 {[%emt 0:00:00]} Bd4 {[%emt 0:00:30]} 53. Rb3 {[%emt 0:00:00]} Rxb3 {[%emt 0:00:32]} 54. Bxb3 {[%emt 0:00:00]} Kg5 {[%emt 0:00:30]} 55. Rxa3 {[%emt 0:00:00]} e4 {[%emt 0:00:17]} 56. Bd1 {[%emt 0:00:00]} Kf4 {[%emt 0:00:24]} 57. Ra4 {[%emt 0:00:00]} Be3 {[%emt 0:00:49]} 58. Kh3 {[%emt 0:00:00]} Nf3 {[%emt 0:00:19]} 59. Kg2 {[%emt 0:00:00]} Ne1+ {[%emt 0:00:30]} 60. Kf1 {[%emt 0:00:00]} Nd3 {[%emt 0:00:22]} 61. Ra5 {[%emt 0:00:00]} Ne5 {[%emt 0:00:38]} 62. Bb3 {[%emt 0:00:00]} Bd2 {[%emt 0:00:36]} 63. Rd5 {[%emt 0:00:00]} Bc3 {[%emt 0:00:20]} 64. Ke2 {[%emt 0:00:00]} Nf3 {[%emt 0:00:16]} 65. Bc4 {[%emt 0:00:00]} Nd4+ {[%emt 0:00:27]} 66. Kf1 {[%emt 0:00:00]} Ke3 {[%emt 0:00:17]} 67. Ba6 {[%emt 0:00:42]} f4 {[%emt 0:00:14]} 68. Bb7 {[%emt 0:04:05]} Nf3 {[%emt 0:00:32]} 69. Rc5 {[%emt 0:01:46]} Nd2+ {[%emt 0:00:54]} 70. Ke1 {[%emt 0:00:01]} Bb4 {[%emt 0:00:11]} 71. Rb5 {[%emt 0:00:28]} f3 {[%emt 0:00:11]} 72. Rf5 {[%emt 0:00:04]} Be7 {[%emt 0:01:07]} 73. Ba6 {[%emt 0:01:01]} Bh4+ {[%emt 0:00:34]} 74. Kd1 {[%emt 0:00:01]} Nb3 {[%emt 0:01:03]} 75. Rf8 {[%emt 0:00:01]} Nc5 {[%emt 0:00:29]} 76. Bb5 {[%emt 0:00:05]} Kf2 {[%emt 0:00:29]} 77. Bc6 {[%emt 0:00:32]} Ke3 {[%emt 0:00:25]} 78. Bb5 {[%emt 0:00:11]} Bg3 {[%emt 0:00:20]} 79. Bf1 {[%emt 0:00:48]} Kf2 {[%emt 0:00:21]} 80. Bb5 {[%emt 0:00:03]} Be5 {[%emt 0:00:53]} 81. Rf5 {[%emt 0:00:25]} Bd4 {[%emt 0:00:08]} 82. Rf8 {[%emt 0:01:36]} Ke3 {[%emt 0:00:21]} 83. Bf1 {[%emt 0:00:20]} Ne6 {[%emt 0:00:21]} 84. Rf5 {[%emt 0:00:17]} Nf4 {[%emt 0:00:20]} 85. Rf7 {[%emt 0:00:47]} Be5 {[%emt 0:00:12]} 86. Rf5 {[%emt 0:00:13]} Kd4 {[%emt 0:01:06]} 87. Ba6 {[%emt 0:04:55]} Nd5 {[%emt 0:00:10]} 88. Rf7 {[%emt 0:00:18]} Nc3+ {[%emt 0:01:15]} 89. Kc2 {[%emt 0:00:37]} Ke3 {[%emt 0:00:35]} 90. Rf8 {[%emt 0:01:50]} Ne2 {[%emt 0:00:33]} 91. Kd1 {[%emt 0:00:06]} Nf4 {[%emt 0:00:31]} 92. Rf5 {[%emt 0:00:11]} Bd6 {[%emt 0:00:23]} 93. Rf6 {[%emt 0:00:10]} Bc7 {[%emt 0:00:34]} 94. Rf7 {[%emt 0:00:28]} Bd8 {[%emt 0:00:16]} 95. Rf8 {[%emt 0:00:07]} Bh4 {[%emt 0:00:11]} 96. Rh8 {[%emt 0:00:18]} Bg3 {[%emt 0:00:07]} 97. Rg8 {[%emt 0:00:10]} Kf2 {[%emt 0:00:39]} 98. Re8 {[%emt 0:01:52]} e3 {[%emt 0:00:06]} 99. Re4 {[%emt 0:03:58]} Nd5 {[%emt 0:00:59]} 100. Re6 {[%emt 0:05:20]} Nc7 {[%emt 0:00:37]} 101. Rxe3 {[%emt 0:00:07]} Kxe3 {[%emt 0:00:06]} 102. Bb7 {[%emt 0:00:22]} f2 {[%emt 0:00:11]} 103. Bg2 {[%emt 0:00:08]} Bd6 {[%emt 0:00:20]} 104. Bf1 {[%emt 0:00:05]} Nd5 {[%emt 0:00:05]} 105. Bg2 {[%emt 0:00:09]} Nc3+ {[%emt 0:00:22]} 106. Kc2 {[%emt 0:00:01]} Be5 {[%emt 0:00:10]} 107. Bf1 {[%emt 0:00:04]} Bf6 {[%emt 0:00:15]} 108. Bg2 {[%emt 0:00:23]} Ke2 {[%emt 0:00:07]} 109. Bh3 {[%emt 0:00:08]} Be5 {[%emt 0:00:40]} 110. Bg2 {[%emt 0:00:03]} Ke1 {[%emt 0:00:18]} 111. Bh3 {[%emt 0:00:57]} Nd5 {[%emt 0:00:08]} 0-1

[Event "Fagernes Chess GM-Swiss 2024"]
[Site "Fagernes"]
[Date "2024.03.29"]
[Round "7.28"]
[White "Hedman, Erik"]
[Black "Skotheim, Andreas"]
[Result "1/2-1/2"]
[ECO "C50"]
[WhiteElo "2311"]
[BlackElo "2214"]
[Annotator "RC"]
[PlyCount "93"]
[EventDate "2024.03.25"]
[EventType "swiss"]
[EventCountry "NOR"]
[SourceTitle "playchess.com"]
[Source "ChessBase"]
[SourceQuality "1"]
[TimeControl "40/6000+30:2400+30"]

1. e4 {[%emt 0:00:59]} e5 {[%emt 0:00:28]} 2. Nf3 {[%emt 0:00:05]} Nc6 {[%emt 0:00:18]} 3. Bc4 {[%emt 0:00:22]} Bc5 {[%emt 0:00:19]} 4. d3 {[%emt 0:00:09]} Nf6 {[%emt 0:00:30]} 5. Bg5 {[%emt 0:00:11]} h6 {[%emt 0:10:59]} 6. Bh4 {[%emt 0:03:47]} Be7 {[%emt 0:04:32]} 7. a4 {[%emt 0:05:26]} a5 {[%emt 0:11:22]} 8. h3 {[%emt 0:09:31]} d6 {[%emt 0:06:26]} 9. Bxf6 {[%emt 0:02:02]} Bxf6 {[%emt 0:00:39]} 10. Nc3 {[%emt 0:00:05]} Nb4 {[%emt 0:10:44]} 11. Bb3 {[%emt 0:00:44]} c6 {[%emt 0:09:07]} 12. Qe2 {[%emt 0:08:38]} O-O {[%emt 0:01:20]} 13. O-O {[%emt 0:00:49]} Re8 {[%emt 0:02:46]} 14. Rad1 {[%emt 0:02:06]} d5 {[%emt 0:06:42]} 15. Rfe1 {[%emt 0:06:26]} Be6 {[%emt 0:08:06]} 16. Nb1 {[%emt 0:07:07]} Qb6 {[%emt 0:01:57]} 17. Nbd2 {[%emt 0:01:08]} Rad8 {[%emt 0:02:10]} 18. Rb1 {[%emt 0:14:54]} g6 {[%emt 0:01:58]} 19. exd5 {[%emt 0:06:46]} cxd5 {[%emt 0:02:54]} 20. Qe3 {[%emt 0:04:49]} Qxe3 {[%emt 0:01:09]} 21. Rxe3 {[%emt 0:01:04]} Nc6 {[%emt 0:02:19]} 22. Ree1 {[%emt 0:02:56]} Bg7 {[%emt 0:02:17]} 23. c3 {[%emt 0:00:18]} f5 {[%emt 0:02:01]} 24. Ba2 {[%emt 0:01:58]} Kf7 {[%emt 0:03:14]} 25. Red1 {[%emt 0:00:04]} g5 {[%emt 0:02:48]} 26. Ne1 {[%emt 0:00:16]} Bf8 {[%emt 0:04:09]} 27. Nc2 {[%emt 0:00:22]} Bc5 {[%emt 0:01:03]} 28. d4 {[%emt 0:03:08]} Bd6 {[%emt 0:03:29]} 29. dxe5 {[%emt 0:00:03]} Bxe5 {[%emt 0:00:19]} 30. Nf3 {[%emt 0:00:06]} Kf6 {[%emt 0:01:17]} 31. Nxe5 {[%emt 0:00:18]} Nxe5 {[%emt 0:01:05]} 32. Nd4 {[%emt 0:00:10]} Bd7 {[%emt 0:01:10]} 33. Bxd5 {[%emt 0:04:33]} Bxa4 {[%emt 0:00:21]} 34. b3 {[%emt 0:00:10]} Bc6 {[%emt 0:02:17]} 35. Bxc6 {[%emt 0:00:44]} Nxc6 {[%emt 0:00:22]} 36. Nxc6 {[%emt 0:03:17]} bxc6 {[%emt 0:00:16]} 37. Rxd8 {[%emt 0:03:05]} Rxd8 {[%emt 0:00:05]} 38. Ra1 {[%emt 0:00:03]} Rd3 {[%emt 0:02:20]} 39. c4 {[%emt 0:00:12]} Rxb3 {[%emt 0:00:14]} 40. Rxa5 {[%emt 0:00:05]} Rb1+ {[%emt 0:00:32]} 41. Kh2 {[%emt 0:40:05]} Rb2 {[%emt 0:41:41]} 42. Ra6 {[%emt 0:08:02]} Rxf2 {[%emt 0:00:30]} 43. Rxc6+ {[%emt 0:00:03]} Kg7 {[%emt 0:00:40]} 44. Rc7+ {[%emt 0:01:11]} Kg6 {[%emt 0:00:57]} 45. Rc6+ {[%emt 0:00:06]} Kg7 {[%emt 0:00:06]} 46. Rc7+ {[%emt 0:00:39]} Kg6 {[%emt 0:00:07]} 47. Rc6+ {[%emt 0:00:03]} 1/2-1/2

[Event "Fagernes Chess GM-Swiss 2024"]
[Site "Fagernes"]
[Date "2024.03.29"]
[Round "7.29"]
[White "Vagman, Roy"]
[Black "Fiskaaen, Martin Holten"]
[Result "1/2-1/2"]
[ECO "B91"]
[WhiteElo "2311"]
[BlackElo "2118"]
[Annotator "RC"]
[PlyCount "154"]
[EventDate "2024.03.25"]
[EventType "swiss"]
[EventCountry "NOR"]
[SourceTitle "playchess.com"]
[Source "ChessBase"]
[SourceQuality "1"]
[TimeControl "40/6000+30:2400+30"]

1. e4 {[%emt 0:00:03]} c5 {[%emt 0:00:18]} 2. Nf3 {[%emt 0:00:07]} d6 {[%emt 0:00:07]} 3. d4 {[%emt 0:00:11]} cxd4 {[%emt 0:00:21]} 4. Nxd4 {[%emt 0:00:06]} Nf6 {[%emt 0:00:27]} 5. Nc3 {[%emt 0:00:07]} a6 {[%emt 0:00:56]} 6. g3 {[%emt 0:05:50]} e5 {[%emt 0:03:56]} 7. Nb3 {[%emt 0:00:17]} Be7 {[%emt 0:12:56]} 8. Bg2 {[%emt 0:00:12]} O-O {[%emt 0:07:39]} 9. O-O {[%emt 0:00:43]} Nbd7 {[%emt 0:13:04]} 10. a4 {[%emt 0:08:36]} b6 {[%emt 0:01:03]} 11. Be3 {[%emt 0:06:46]} Bb7 {[%emt 0:00:42]} 12. Qe2 {[%emt 0:05:53]} Qc7 {[%emt 0:02:14]} 13. Rad1 {[%emt 0:03:18]} Rac8 {[%emt 0:01:39]} 14. Nd2 {[%emt 0:01:34]} h6 {[%emt 0:02:52]} 15. f4 {[%emt 0:04:23]} Rfe8 {[%emt 0:04:39]} 16. f5 {[%emt 0:02:36]} Nc5 {[%emt 0:04:53]} 17. h4 {[%emt 0:08:53]} Red8 {[%emt 0:09:01]} 18. g4 {[%emt 0:20:02]} d5 {[%emt 0:12:33]} 19. exd5 {[%emt 0:01:00]} Nxd5 {[%emt 0:02:05]} 20. Bxd5 {[%emt 0:04:17]} Bxd5 {[%emt 0:00:27]} 21. b4 {[%emt 0:05:07]} Nb7 {[%emt 0:00:45]} 22. Nxd5 {[%emt 0:00:53]} Rxd5 {[%emt 0:00:06]} 23. c4 {[%emt 0:04:59]} Rd7 {[%emt 0:05:38]} 24. g5 {[%emt 0:09:43]} hxg5 {[%emt 0:00:32]} 25. hxg5 {[%emt 0:01:57]} Bxb4 {[%emt 0:00:36]} 26. Ne4 {[%emt 0:03:27]} Rxd1 {[%emt 0:05:17]} 27. Rxd1 {[%emt 0:00:06]} Qc6 {[%emt 0:09:19]} 28. Qg4 {[%emt 0:03:43]} Nd6 {[%emt 0:07:23]} 29. Nf6+ {[%emt 0:03:38]} Kf8 {[%emt 0:00:04]} 30. Nh7+ {[%emt 0:04:22]} Kg8 {[%emt 0:01:38]} 31. g6 {[%emt 0:01:16]} Bc5 {[%emt 0:00:57]} 32. Re1 {[%emt 0:00:48]} Bxe3+ {[%emt 0:01:05]} 33. Rxe3 {[%emt 0:00:01]} Qxc4 {[%emt 0:00:56]} 34. gxf7+ {[%emt 0:00:55]} Nxf7 {[%emt 0:00:35]} 35. Nf6+ {[%emt 0:00:36]} Kf8 {[%emt 0:00:01]} 36. Nd7+ {[%emt 0:00:50]} Ke7 {[%emt 0:01:06]} 37. Qxc4 {[%emt 0:00:38]} Rxc4 {[%emt 0:00:03]} 38. Nxb6 {[%emt 0:00:03]} Rg4+ {[%emt 0:00:41]} 39. Kf2 {[%emt 0:00:47]} Rf4+ {[%emt 0:00:44]} 40. Ke2 {[%emt 0:00:24]} Rxf5 {[%emt 0:00:37]} 41. Rc3 {[%emt 0:02:07]} Rg5 {[%emt 0:15:18]} 42. Rc7+ {[%emt 0:02:25]} Ke6 {[%emt 0:00:26]} 43. Rc6+ {[%emt 0:02:19]} Kf5 {[%emt 0:02:22]} 44. Nd5 {[%emt 0:00:15]} e4 {[%emt 0:04:19]} 45. Ne3+ {[%emt 0:02:01]} Kf4 {[%emt 0:01:23]} 46. Rxa6 {[%emt 0:00:51]} Rh5 {[%emt 0:02:16]} 47. Rg6 {[%emt 0:03:18]} Ng5 {[%emt 0:03:33]} 48. Ng2+ {[%emt 0:04:08]} Kf5 {[%emt 0:05:59]} 49. Rxg7 {[%emt 0:00:08]} Rh1 {[%emt 0:02:03]} 50. Rb7 {[%emt 0:05:46]} Ra1 {[%emt 0:01:12]} 51. Ne3+ {[%emt 0:02:58]} Kf4 {[%emt 0:01:51]} 52. Nd5+ {[%emt 0:00:50]} Ke5 {[%emt 0:00:29]} 53. Nc3 {[%emt 0:00:26]} Kd4 {[%emt 0:02:10]} 54. Kd2 {[%emt 0:00:45]} Ne6 {[%emt 0:01:12]} 55. Rb4+ {[%emt 0:00:40]} Kc5 {[%emt 0:00:31]} 56. Rxe4 {[%emt 0:00:09]} Nc7 {[%emt 0:00:23]} 57. Kc2 {[%emt 0:00:24]} Rh1 {[%emt 0:00:45]} 58. Kb3 {[%emt 0:00:25]} Rh5 {[%emt 0:01:00]} 59. a5 {[%emt 0:01:03]} Kc6 {[%emt 0:01:16]} 60. Ka4 {[%emt 0:00:02]} Rc5 {[%emt 0:01:05]} 61. Ne2 {[%emt 0:01:09]} Rh5 {[%emt 0:00:48]} 62. Rb4 {[%emt 0:00:56]} Rh1 {[%emt 0:00:35]} 63. Nd4+ {[%emt 0:00:17]} Kd7 {[%emt 0:00:27]} 64. Nb3 {[%emt 0:00:16]} Rh2 {[%emt 0:00:31]} 65. Ka3 {[%emt 0:00:24]} Rh6 {[%emt 0:00:25]} 66. Nc5+ {[%emt 0:00:14]} Kc8 {[%emt 0:00:25]} 67. Rg4 {[%emt 0:00:42]} Na6 {[%emt 0:00:46]} 68. Nb3 {[%emt 0:00:53]} Kb7 {[%emt 0:00:25]} 69. Rg5 {[%emt 0:00:41]} Rh4 {[%emt 0:00:29]} 70. Rb5+ {[%emt 0:01:21]} Ka7 {[%emt 0:00:22]} 71. Rb6 {[%emt 0:00:10]} Rh5 {[%emt 0:00:42]} 72. Rg6 {[%emt 0:00:47]} Kb7 {[%emt 0:00:19]} 73. Rg7+ {[%emt 0:00:19]} Kb8 {[%emt 0:00:29]} 74. Kb2 {[%emt 0:00:34]} Rh4 {[%emt 0:00:26]} 75. Kc3 {[%emt 0:00:12]} Rf4 {[%emt 0:00:48]} 76. Nd4 {[%emt 0:00:15]} Nc7 {[%emt 0:00:31]} 77. Kd3 {[%emt 0:03:29]} Rxd4+ {[%emt 0:00:24]} 1/2-1/2

[Event "Fagernes Chess GM-Swiss 2024"]
[Site "Fagernes"]
[Date "2024.03.29"]
[Round "7.30"]
[White "Kaewpitakkun, Pantham"]
[Black "Brynell, Stellan"]
[Result "0-1"]
[ECO "C11"]
[WhiteElo "1989"]
[BlackElo "2406"]
[Annotator "TA"]
[PlyCount "100"]
[EventDate "2024.03.25"]
[EventType "swiss"]
[EventCountry "NOR"]
[SourceTitle "playchess.com"]
[Source "ChessBase"]
[SourceQuality "1"]
[TimeControl "40/6000+30:2400+30"]

{[%evp 18,100,8,19,23,1,16,-2,14,8,4,0,14,9,18,-42,-46,-45,-45,-43,-57,-54,-47,-62,-47,-48,-8,-36,-22,-29,-22,-41,-10,-11,-13,-104,-102,-106,-110,-103,-97,-97,-105,-90,-107,-141,-140,-255,-85,-85,-89,-89,-89,-309,-202,-835,-835,-771,-98,-98,-100,-4627,-4627,-4614,-2583,-6069,-6069,-29978,-29979,-29979,-29980,-29980,-29981,-29981,-29982,-29982,-29983,-29982,-29983,-29983,-29984,-29990,-29991,-29991,-29992]} 1. e4 {[%emt 0:00:08][%cal Be2e4,Be4e5][%mdl 32]} e6 {[%emt 0:01:59]} 2. d4 {[%emt 0:00:04]} d5 {[%emt 0:00:05]} 3. Nc3 {[%emt 0:00:38]} Nf6 {[%emt 0:00:29]} 4. e5 {[%emt 0:04:00]} Nfd7 {[%emt 0:00:27]} 5. f4 {[%emt 0:01:03]} c5 {[%emt 0:00:07]} 6. Nf3 {[%emt 0:00:44]} Nc6 {[%emt 0:00:07]} 7. Be3 {[%emt 0:01:45]} cxd4 {[%emt 0:00:07]} 8. Nxd4 {[%emt 0:00:20]} Bc5 {[%emt 0:00:06]} 9. Qd2 {[%emt 0:03:17]} O-O {[%emt 0:00:09]} 10. Be2 {[%emt 0:04:01]} a6 {[%emt 0:14:47]} 11. O-O {[%emt 0:06:36]} Qc7 {[%emt 0:16:36]} 12. Kh1 {[%emt 0:05:12]} Nxd4 {[%emt 0:03:08] The position is equal.} 13. Bxd4 {[%emt 0:00:12]} b5 {[%emt 0:00:19]} 14. Bxc5 {[%emt 0:03:39]} Qxc5 {[%emt 0:05:47]} 15. Bf3 {[%emt 0:16:29]} Nb6 {[%emt 0:07:46] [#]} 16. f5 {[%emt 0:04:30]} exf5 $15 {[%emt 0:00:56]} 17. Nxd5 {[%emt 0:00:41]} Nxd5 {[%emt 0:02:29]} 18. Qxd5 {[%emt 0:01:25]} Qxd5 {[%emt 0:00:06]} 19. Bxd5 {[%emt 0:00:06]} Ra7 {[%emt 0:00:15]} 20. Rad1 {[%emt 0:03:16]} Re7 {[%emt 0:01:30]} 21. Rfe1 {[%emt 0:01:38]} f4 {[%emt 0:07:18]} 22. h3 {[%emt 0:08:02]} g5 {[%emt 0:01:18]} 23. c4 {[%emt 0:06:17]} bxc4 {[%emt 0:06:39]} 24. Bxc4 {[%emt 0:00:12][%cal Oh3h4]} Kg7 {[%emt 0:02:37]} 25. b4 {[%emt 0:06:30]} Rfe8 {[%emt 0:08:56]} 26. Rd6 {[%emt 0:03:50]} (26. a4 $11 {remains equal.}) 26... Rxe5 $17 {[%emt 0:00:30]} 27. Rxe5 {[%emt 0:00:18]} Rxe5 {[%emt 0:00:05]} 28. Bxa6 {[%emt 0:04:15][%mdl 4096] Endgame. KRB-KRB} Re1+ {[%emt 0:00:29]} 29. Kh2 {[%emt 0:02:34]} Bxa6 {[%emt 0:00:09]} 30. Rxa6 {[%emt 0:00:09] KR-KR} Rb1 {[%emt 0:00:11]} 31. Ra5 {[%emt 0:04:16]} Kg6 {[%emt 0:05:21]} (31... Rxb4 32. Rxg5+ Kf6 33. Ra5 $11) 32. b5 {[%emt 0:01:43]} (32. Ra4 $17 {was necessary.}) 32... Rb2 $2 {[%emt 0:05:29]} (32... f5 $19 {aiming for ...g4.} 33. Ra6+ Kh5) 33. Kg1 {[%emt 0:02:02]} Kh5 {[%emt 0:02:39] Black has more active pieces.} 34. a4 {[%emt 0:02:37]} Kh4 {[%emt 0:00:10]} 35. Kf1 $2 {[%emt 0:00:44]} (35. b6 $17 Rxb6 36. Rb5) 35... f6 {[%emt 0:05:16]} 36. Ra6 $2 {[%emt 0:04:35]} (36. b6 Rxb6 37. Rb5) 36... Kg3 $19 {[%emt 0:03:00] Strongly threatening ...Rb1+.} 37. Rxf6 {[%emt 0:01:34]} Rb1+ $2 {[%emt 0:05:12]} (37... Rxg2 38. Rf5 Rf2+ (38... Kxh3 $2 39. b6 $18) 39. Ke1 $11) (37... Rf2+ $1 $19 38. Ke1 Kxg2 (38... Rxg2 39. b6 $11)) 38. Ke2 $17 {[%emt 0:00:07] b6 is the strong threat.} Kxg2 {[%emt 0:00:05]} 39. Rf5 $2 {[%emt 0:03:55][%mdl 8192] [#]} (39. h4 $2 f3+ 40. Rxf3 Rb2+ (40... gxh4 41. Rf5 $11) 41. Ke3 Rb3+ (41... gxh4 42. Rf7 $11) 42. Ke4 Rxf3 $19) (39. b6 $17 f3+ (39... Kxh3 40. a5 $18) 40. Ke3) 39... f3+ $1 $19 {[%emt 0:02:49]} (39... Kxh3 40. Rxg5 h5 41. Kf2 $14 (41. Rxh5+ Kg4 $11)) 40. Ke3 {[%emt 0:02:09]} Rb3+ {[%emt 0:01:15]} (40... Kxh3 41. Rxg5 Kh4 42. Rg7 $11) 41. Kd4 {[%emt 0:44:31]} f2 {[%emt 0:42:03] ( -> ...Rf3)} 42. Rxf2+ {[%emt 0:00:00]} Kxf2 {[%emt 0:00:00] Black mates.} 43. Kc4 {[%emt 0:00:00]} Rxh3 {[%emt 0:00:00] KR-KPP} 44. b6 {[%emt 0:00:00] [#]} Rh1 $1 {[%emt 0:00:00]} 45. a5 {[%emt 0:00:00]} Rb1 {[%emt 0:00:00]} 46. Kc5 {[%emt 0:00:00]} g4 {[%emt 0:00:00]} 47. a6 {[%emt 0:00:00]} g3 {[%emt 0:00:00]} 48. a7 {[%emt 0:00:00]} g2 {[%emt 0:00:00]} (48... Rc1+ 49. Kd6 g2 50. a8=Q $19) 49. b7 {[%emt 0:00:00]} g1=Q {[%emt 0:00:00]} (49... g1=R $2 {loses.} 50. b8=Q $18 (50. b8=R Rbc1+ 51. Kb4 Rg4+ 52. Kb5 Ra1 $15) (50. b8=R Ra1 $11)) 50. b8=Q {[%emt 0:00:00]} Qg5+ {[%emt 0:00:00] Weighted Error Value: White=0.73/Black=0.25 (precise) .  Loses game:     	White=2     	---        Missed win:     	---       	Black=1      Mistake:       	White=4     	---        Inaccurate:     	White=2     	Black=3      OK:         	White=6     	Black=10     Best:        	White=3     	Black=4      Strong:       	---       	Black=1} 0-1

[Event "Fagernes Chess GM-Swiss 2024"]
[Site "Fagernes"]
[Date "2024.03.29"]
[Round "7.31"]
[White "Yaniv, Yuval"]
[Black "Mihajlov, Svetoslav"]
[Result "1/2-1/2"]
[ECO "C13"]
[WhiteElo "2368"]
[BlackElo "2094"]
[Annotator "RC"]
[PlyCount "51"]
[EventDate "2024.03.25"]
[EventType "swiss"]
[EventCountry "NOR"]
[SourceTitle "playchess.com"]
[Source "ChessBase"]
[SourceQuality "1"]
[TimeControl "40/6000+30:2400+30"]

1. e4 {[%emt 0:00:12]} e6 {[%emt 0:00:06]} 2. d4 {[%emt 0:00:21]} d5 {[%emt 0:00:11]} 3. Nc3 {[%emt 0:01:12]} Nf6 {[%emt 0:01:16]} 4. Bg5 {[%emt 0:00:13]} dxe4 {[%emt 0:01:04]} 5. Nxe4 {[%emt 0:00:07]} Be7 {[%emt 0:00:11]} 6. Bxf6 {[%emt 0:00:08]} Bxf6 {[%emt 0:02:11]} 7. Nf3 {[%emt 0:01:07]} Nd7 {[%emt 0:01:16]} 8. Qd2 {[%emt 0:01:54]} O-O {[%emt 0:00:13]} 9. O-O-O {[%emt 0:01:49]} b6 {[%emt 0:04:11]} 10. Bd3 {[%emt 0:04:13]} Bb7 {[%emt 0:00:19]} 11. Qe3 {[%emt 0:03:02]} Qe7 {[%emt 0:01:42]} 12. h4 {[%emt 0:13:26]} c5 {[%emt 0:02:32]} 13. Neg5 {[%emt 0:01:55]} h6 {[%emt 0:00:10]} 14. Bh7+ {[%emt 0:02:12]} Kh8 {[%emt 0:00:50]} 15. Be4 {[%emt 0:00:13]} Bxd4 {[%emt 0:08:20]} 16. Qa3 {[%emt 0:20:38]} Bxe4 {[%emt 0:03:56]} 17. Nxe4 {[%emt 0:02:28]} Be5 {[%emt 0:21:30]} 18. Qd3 {[%emt 0:13:56]} Bf4+ {[%emt 0:04:34]} 19. Kb1 {[%emt 0:00:16]} Rad8 {[%emt 0:04:38]} 20. Neg5 {[%emt 0:01:54]} Bxg5 {[%emt 0:19:51]} 21. hxg5 {[%emt 0:07:07]} Ne5 {[%emt 0:00:25]} 22. Qc3 {[%emt 0:02:39]} Rxd1+ {[%emt 0:00:11]} 23. Rxd1 {[%emt 0:00:03]} Nxf3 {[%emt 0:00:16]} 24. gxh6 {[%emt 0:00:30]} Qf6 {[%emt 0:06:53]} 25. hxg7+ {[%emt 0:00:48]} Kxg7 {[%emt 0:00:13]} 26. gxf3 {[%emt 0:09:44]} 1/2-1/2

[Event "Fagernes Chess GM-Swiss 2024"]
[Site "Fagernes"]
[Date "2024.03.29"]
[Round "7.32"]
[White "Nordahl, Helge"]
[Black "Sian, Shadi"]
[Result "1/2-1/2"]
[ECO "D63"]
[WhiteElo "2330"]
[BlackElo "2076"]
[Annotator "RC"]
[PlyCount "53"]
[EventDate "2024.03.25"]
[EventType "swiss"]
[EventCountry "NOR"]
[SourceTitle "playchess.com"]
[Source "ChessBase"]
[SourceQuality "1"]
[TimeControl "40/6000+30:2400+30"]

1. d4 {[%emt 0:00:02]} Nf6 {[%emt 0:01:28]} 2. c4 {[%emt 0:00:12]} e6 {[%emt 0:00:07]} 3. Nc3 {[%emt 0:00:16]} d5 {[%emt 0:00:08]} 4. Bg5 {[%emt 0:00:05]} Be7 {[%emt 0:00:09]} 5. e3 {[%emt 0:00:03]} O-O {[%emt 0:00:06]} 6. Nf3 {[%emt 0:00:04]} Nbd7 {[%emt 0:00:03]} 7. Rc1 {[%emt 0:00:19]} dxc4 {[%emt 0:00:09]} 8. Bxc4 {[%emt 0:00:13]} a6 {[%emt 0:00:03]} 9. a4 {[%emt 0:09:00]} h6 {[%emt 0:00:07]} 10. Bh4 {[%emt 0:00:37]} c5 {[%emt 0:00:06]} 11. O-O {[%emt 0:01:38]} cxd4 {[%emt 0:00:04]} 12. Nxd4 {[%emt 0:02:05]} Qb6 {[%emt 0:01:52]} 13. Qc2 {[%emt 0:05:02]} Ne5 {[%emt 0:03:30]} 14. Ba2 {[%emt 0:03:29]} Ng6 {[%emt 0:07:40]} 15. Bg3 {[%emt 0:01:15]} Bd7 {[%emt 0:14:10]} 16. Qb3 {[%emt 0:08:43]} Qxb3 {[%emt 0:00:36]} 17. Bxb3 {[%emt 0:01:45]} Rac8 {[%emt 0:00:08]} 18. Rfd1 {[%emt 0:00:34]} Rfd8 {[%emt 0:01:56]} 19. h3 {[%emt 0:03:05]} Bb4 {[%emt 0:03:16]} 20. Nce2 {[%emt 0:07:37]} Rxc1 {[%emt 0:01:01]} 21. Rxc1 {[%emt 0:01:27]} Rc8 {[%emt 0:00:13]} 22. Rd1 {[%emt 0:03:47]} Bc5 {[%emt 0:08:37]} 23. Nc3 {[%emt 0:03:03]} Bb4 {[%emt 0:01:23]} 24. Nce2 {[%emt 0:01:09]} Bc5 {[%emt 0:00:04]} 25. Nc3 {[%emt 0:03:43]} Bb4 {[%emt 0:00:07]} 26. Nce2 {[%emt 0:00:19]} Bc5 {[%emt 0:00:05]} 27. Nc3 {[%emt 0:00:10]} 1/2-1/2